fUST/lending_fUST_20250806
["ID","MTS","AMOUNT","RATE_DAILY","PERIOD"]
[377472855,1754421041294,-460.0,0.00027671,2]
[377472856,1754421041305,-1226.39,0.00027671,2]
[377472857,1754421041316,-460.0,0.00027671,2]
[377472858,1754421041327,-579.4,0.00027671,2]
[377472859,1754421041337,-460.0,0.00027671,2]
[377472860,1754421041349,-460.0,0.00027671,2]
[377472861,1754421041359,-460.0,0.00027671,2]
[377472862,1754421041370,-460.0,0.00027671,2]
[377472863,1754421041381,-789.35,0.00027671,2]
[377472864,1754421041392,-460.0,0.00027671,2]
[377472865,1754421041403,-460.0,0.00027671,2]
[377472866,1754421041413,-460.0,0.00027671,2]
[377472867,1754421041424,-460.0,0.00027671,2]
[377472868,1754421041435,-460.0,0.00027671,2]
[377472869,1754421041446,-460.0,0.00027671,2]
[377472870,1754421041456,-460.0,0.00027671,2]
[377472871,1754421041467,-460.0,0.00027671,2]
[377472872,1754421041478,-620.54,0.00027671,2]
[377472873,1754421041489,-460.0,0.00027671,2]
[377472874,1754421041499,-460.0,0.00027671,2]
[377472875,1754421041510,-1008.37,0.00027671,2]
[377472876,1754421041520,-460.0,0.00027671,2]
[377472877,1754421041531,-460.0,0.00027671,2]
[377472878,1754421041541,-460.0,0.00027671,2]
[377472879,1754421041552,-460.0,0.00027671,2]
[377472880,1754421041563,-460.0,0.00027671,2]
[377472881,1754421041574,-460.0,0.00027671,2]
[377472882,1754421041584,-473.4,0.00027671,2]
[377472883,1754421041595,-460.0,0.00027671,2]
[377472884,1754421041614,-544.42,0.00027671,2]
[377472885,1754421041625,-460.0,0.00027671,2]
[377472886,1754421041638,-460.0,0.00027671,2]
[377472887,1754421041649,-460.0,0.00027671,2]
[377472888,1754421041660,-460.0,0.00027671,2]
[377472889,1754421041670,-460.0,0.00027671,2]
[377472890,1754421041681,-460.0,0.00027671,2]
[377472891,1754421041692,-460.0,0.00027671,2]
[377472892,1754421041706,-478.73,0.00027671,2]
[377472893,1754421041717,-460.0,0.00027671,2]
[377472894,1754421041727,-460.0,0.00027671,2]
[377472895,1754421041739,-460.0,0.00027671,2]
[377472896,1754421041750,-701.86,0.00027671,2]
[377472897,1754421041761,-737.98,0.00027671,2]
[377472898,1754421041775,-530.37,0.00027671,2]
[377472899,1754421041787,-1634.55,0.00027671,2]
[377472900,1754421041799,-460.0,0.00027671,2]
[377472901,1754421041811,-1213.33,0.00027671,2]
[377472902,1754421041822,-460.0,0.00027671,2]
[377472903,1754421041833,-460.0,0.00027671,2]
[377472904,1754421041844,-582.74,0.00027671,2]
[377472905,1754421041855,-460.0,0.00027671,2]
[377472906,1754421041865,-460.0,0.00027671,2]
[377472907,1754421041876,-460.0,0.00027671,2]
[377472908,1754421041887,-460.0,0.00027671,2]
[377472909,1754421041898,-779.51,0.00027671,2]
[377472910,1754421041909,-469.99399809,0.00027671,2]
[377472911,1754421041921,-460.0,0.00027671,2]
[377472912,1754421041931,-460.0,0.00027671,2]
[377472913,1754421041942,-1184.55,0.00027671,2]
[377472914,1754421041953,-460.0,0.00027671,2]
[377472915,1754421041967,-460.0,0.00027671,2]
[377472916,1754421041979,-460.0,0.00027671,2]
[377472917,1754421041989,-297.64655322,0.00027671,2]
[377472918,1754421042002,-460.0,0.00027671,2]
[377472919,1754421042013,-420.0,0.00027773,2]
[377472920,1754421042022,-6747.65144755,0.00027937,2]
[377472921,1754421042032,-160.0,0.0002794,2]
[377472922,1754421042155,-460.0,0.00027944,2]
[377472923,1754421042208,-626.69,0.00027944,2]
[377472924,1754421042219,-460.0,0.00027945,2]
[377472925,1754421042228,-460.0,0.00027945,2]
[377472926,1754421042238,-460.0,0.00027945,2]
[377472927,1754421042248,-460.0,0.00027945,2]
[377472928,1754421042258,-460.0,0.00027945,2]
[377472929,1754421042268,-460.0,0.00027945,2]
[377472930,1754421042278,-460.0,0.00027945,2]
[377472931,1754421042288,-460.0,0.00027945,2]
[377472932,1754421042297,-623.71,0.00027945,2]
[377472933,1754421042307,-557.91,0.00027945,2]
[377472934,1754421042316,-3337.54,0.00027945,2]
[377472935,1754421042325,-563.83,0.00027945,2]
[377472936,1754421042335,-460.0,0.00027945,2]
[377472937,1754421042344,-383.12478813,0.00027945,2]
[377472938,1754421042353,-460.0,0.00027945,2]
[377472939,1754421042363,-460.0,0.00027945,2]
[377472940,1754421042372,-460.0,0.00027945,2]
[377472941,1754421042383,-460.0,0.00027945,2]
[377472942,1754421042392,-460.0,0.00027945,2]
[377472943,1754421042402,-460.0,0.00027945,2]
[377472944,1754421042411,-541.46,0.00027945,2]
[377472945,1754421042420,-524.51,0.00027945,2]
[377472946,1754421042429,-950.23,0.00027945,2]
[377472947,1754421042439,-460.0,0.00027945,2]
[377472948,1754421042448,-570.51,0.00027945,2]
[377472949,1754421042458,-556.46,0.00027945,2]
[377472950,1754421042467,-460.0,0.00027945,2]
[377472951,1754421042476,-460.0,0.00027945,2]
[377472952,1754421042485,-460.0,0.00027945,2]
[377472953,1754421042494,-460.0,0.00027945,2]
[377472954,1754421042504,-491.27,0.00027945,2]
[377472955,1754421042514,-870.16,0.00027945,2]
[377472956,1754421042523,-460.0,0.00027945,2]
[377472957,1754421042532,-2657.27,0.00027945,2]
[377472958,1754421042542,-460.0,0.00027945,2]
[377472959,1754421042551,-336.91920063,0.00027945,2]
[377472960,1754421042560,-1226.39,0.00027945,2]
[377472961,1754421042570,-460.0,0.00027945,2]
[377472962,1754421042579,-323.34260802,0.00027945,2]
[377472963,1754421042589,-460.0,0.00027945,2]
[377472964,1754421042599,-460.0,0.00027945,2]
[377472965,1754421042608,-789.35,0.00027945,2]
[377472966,1754421042617,-460.0,0.00027945,2]
[377472967,1754421042627,-423.44,0.00027945,2]
[377472968,1754421042636,-460.0,0.00027945,2]
[377472969,1754421042646,-200.7,0.00027945,2]
[377472970,1754421042655,-460.0,0.00027945,2]
[377472971,1754421042665,-620.54,0.00027945,2]
[377472972,1754421042675,-460.0,0.00027945,2]
[377472973,1754421042685,-1008.37,0.00027945,2]
[377472974,1754421042695,-460.0,0.00027945,2]
[377472975,1754421042709,-460.0,0.00027945,2]
[377472976,1754421042719,-460.0,0.00027945,2]
[377472977,1754421042728,-460.0,0.00027945,2]
[377472978,1754421042738,-473.4,0.00027945,2]
[377472979,1754421042748,-460.0,0.00027945,2]
[377472980,1754421042759,-330.59,0.00027945,2]
[377472981,1754421042769,-460.0,0.00027945,2]
[377472982,1754421042781,-460.0,0.00027945,2]
[377472983,1754421042791,-460.0,0.00027945,2]
[377472984,1754421042800,-547.99,0.00027945,2]
[377472985,1754421042809,-460.0,0.00027945,2]
[377472986,1754421042819,-478.73,0.00027945,2]
[377472987,1754421042829,-460.0,0.00027945,2]
[377472988,1754421042838,-460.0,0.00027945,2]
[377472989,1754421042848,-701.86,0.00027945,2]
[377472990,1754421042857,-530.37,0.00027945,2]
[377472991,1754421042867,-737.98,0.00027945,2]
[377472992,1754421042876,-1634.55,0.00027945,2]
[377472993,1754421042890,-460.0,0.00027945,2]
[377472994,1754421042900,-1213.33,0.00027945,2]
[377472995,1754421042909,-460.0,0.00027945,2]
[377472996,1754421042918,-460.0,0.00027945,2]
[377472997,1754421042928,-582.74,0.00027945,2]
[377472998,1754421042937,-460.0,0.00027945,2]
[377472999,1754421042946,-779.51,0.00027945,2]
[377473000,1754421042956,-460.0,0.00027945,2]
[377473001,1754421042965,-460.0,0.00027945,2]
[377473002,1754421042974,-1184.55,0.00027945,2]
[377473003,1754421042984,-460.0,0.00027945,2]
[377473004,1754421042993,-460.0,0.00027945,2]
[377473005,1754421043003,-460.0,0.00027945,2]
[377473006,1754421043013,-460.0,0.00027945,2]
[377473007,1754421043022,-527.3554621,0.00028,3]
[377473008,1754421043032,-527.3554621,0.00028,3]
[377473009,1754421043043,-312.16666667,0.00028,3]
[377473010,1754421043058,-842.25606042,0.00028,3]
[377473011,1754421043070,-156.959517,0.00028104,2]
[377473012,1754421043079,-200.0,0.00028208,15]
[377473013,1754421043088,-300.0,0.00028208,15]
[377473015,1754421043097,-33567.74,0.00028218,2]
[377473017,1754421043106,-460.0,0.00028218,2]
[377473018,1754421043115,-626.69,0.00028218,2]
[377473019,1754421043124,-460.0,0.00028219,2]
[377473020,1754421043137,-460.0,0.00028219,2]
[377473021,1754421043147,-460.0,0.00028219,2]
[377473022,1754421043156,-460.0,0.00028219,2]
[377473023,1754421043166,-460.0,0.00028219,2]
[377473024,1754421043176,-460.0,0.00028219,2]
[377473025,1754421043185,-460.0,0.00028219,2]
[377473026,1754421043194,-623.71,0.00028219,2]
[377473027,1754421043203,-557.91,0.00028219,2]
[377473028,1754421043212,-3337.54,0.00028219,2]
[377473029,1754421043221,-460.0,0.00028219,2]
[377473030,1754421043230,-460.0,0.00028219,2]
[377473031,1754421043239,-541.46,0.00028219,2]
[377473032,1754421043248,-524.51,0.00028219,2]
[377473033,1754421043257,-950.23,0.00028219,2]
[377473035,1754421043271,-460.0,0.00028219,2]
[377473036,1754421043280,-570.51,0.00028219,2]
[377473037,1754421043289,-175.62,0.00028219,2]
[377473038,1754421043298,-460.0,0.00028219,2]
[377473039,1754421043308,-491.27,0.00028219,2]
[377473040,1754421043317,-870.16,0.00028219,2]
[377473041,1754421043327,-2657.27,0.00028219,2]
[377473042,1754421043336,-1226.39,0.00028219,2]
[377473043,1754421043345,-460.0,0.00028219,2]
[377473044,1754421043354,-460.0,0.00028219,2]
[377473045,1754421043364,-789.35,0.00028219,2]
[377473046,1754421043373,-460.0,0.00028219,2]
[377473047,1754421043383,-460.0,0.00028219,2]
[377473048,1754421043392,-620.54,0.00028219,2]
[377473049,1754421043402,-460.0,0.00028219,2]
[377473050,1754421043412,-1008.37,0.00028219,2]
[377473051,1754421043421,-460.0,0.00028219,2]
[377473052,1754421043431,-460.0,0.00028219,2]
[377473053,1754421043440,-460.0,0.00028219,2]
[377473054,1754421043449,-473.4,0.00028219,2]
[377473055,1754421043458,-460.0,0.00028219,2]
[377473056,1754421043467,-460.0,0.00028219,2]
[377473058,1754421043476,-460.0,0.00028219,2]
[377473059,1754421043485,-460.0,0.00028219,2]
[377473060,1754421043494,-460.0,0.00028219,2]
[377473061,1754421043504,-478.73,0.00028219,2]
[377473062,1754421043513,-460.0,0.00028219,2]
[377473063,1754421043521,-701.86,0.00028219,2]
[377473065,1754421043532,-530.37,0.00028219,2]
[377473066,1754421043541,-737.98,0.00028219,2]
[377473067,1754421043551,-1634.55,0.00028219,2]
[377473068,1754421043561,-460.0,0.00028219,2]
[377473069,1754421043571,-1213.33,0.00028219,2]
[377473070,1754421043580,-582.74,0.00028219,2]
[377473071,1754421043590,-779.51,0.00028219,2]
[377473072,1754421043600,-460.0,0.00028219,2]
[377473073,1754421043609,-1184.55,0.00028219,2]
[377473074,1754421043618,-460.0,0.00028219,2]
[377473075,1754421043630,-460.0,0.00028219,2]
[377473076,1754421043641,-460.0,0.00028219,2]
[377473077,1754421043650,-166.76976,0.00028248,2]
[377473078,1754421043659,-156.959517,0.00028306,2]
[377473079,1754421043668,-260.0,0.00028488,2]
[377473080,1754421043678,-33567.74,0.00028492,2]
[377473081,1754421043688,-460.0,0.00028492,2]
[377473082,1754421043699,-626.69,0.00028492,2]
[377473083,1754421043711,-460.0,0.00028493,2]
[377473084,1754421043720,-460.0,0.00028493,2]
[377473085,1754421043730,-460.0,0.00028493,2]
[377473086,1754421043740,-460.0,0.00028493,2]
[377473087,1754421043749,-460.0,0.00028493,2]
[377473088,1754421043759,-460.0,0.00028493,2]
[377473089,1754421043768,-460.0,0.00028493,2]
[377473090,1754421043779,-623.71,0.00028493,2]
[377473091,1754421043789,-557.91,0.00028493,2]
[377473092,1754421043799,-3337.54,0.00028493,2]
[377473093,1754421043809,-460.0,0.00028493,2]
[377473094,1754421043818,-460.0,0.00028493,2]
[377473095,1754421043827,-541.46,0.00028493,2]
[377473096,1754421043836,-524.51,0.00028493,2]
[377473097,1754421043845,-950.23,0.00028493,2]
[377473098,1754421043854,-460.0,0.00028493,2]
[377473099,1754421043863,-570.51,0.00028493,2]
[377473100,1754421043872,-460.0,0.00028493,2]
[377473101,1754421043883,-491.27,0.00028493,2]
[377473102,1754421043893,-870.16,0.00028493,2]
[377473103,1754421043902,-2657.27,0.00028493,2]
[377473104,1754421043912,-1226.39,0.00028493,2]
[377473105,1754421043921,-460.0,0.00028493,2]
[377473106,1754421043930,-460.0,0.00028493,2]
[377473107,1754421043940,-789.35,0.00028493,2]
[377473109,1754421043949,-460.0,0.00028493,2]
[377473111,1754421043958,-460.0,0.00028493,2]
[377473113,1754421043967,-620.54,0.00028493,2]
[377473115,1754421043976,-460.0,0.00028493,2]
[377473117,1754421043986,-1008.37,0.00028493,2]
[377473118,1754421043995,-549.33,0.00028493,2]
[377473119,1754421044005,-460.0,0.00028493,2]
[377473120,1754421044015,-460.0,0.00028493,2]
[377473121,1754421044024,-473.4,0.00028493,2]
[377473122,1754421044033,-460.0,0.00028493,2]
[377473123,1754421044044,-460.0,0.00028493,2]
[377473124,1754421044053,-460.0,0.00028493,2]
[377473125,1754421044063,-460.0,0.00028493,2]
[377473126,1754421044072,-460.0,0.00028493,2]
[377473127,1754421044082,-478.73,0.00028493,2]
[377473128,1754421044099,-460.0,0.00028493,2]
[377473129,1754421044112,-701.86,0.00028493,2]
[377473130,1754421044121,-530.37,0.00028493,2]
[377473131,1754421044132,-737.98,0.00028493,2]
[377473132,1754421044141,-1634.55,0.00028493,2]
[377473133,1754421044150,-460.0,0.00028493,2]
[377473134,1754421044159,-1213.33,0.00028493,2]
[377473135,1754421044169,-582.74,0.00028493,2]
[377473136,1754421044178,-779.51,0.00028493,2]
[377473137,1754421044187,-460.0,0.00028493,2]
[377473138,1754421044197,-1184.55,0.00028493,2]
[377473139,1754421044206,-460.0,0.00028493,2]
[377473140,1754421044215,-156.959517,0.00028507,2]
[377473141,1754421044225,-156.531809,0.00028507,2]
[377473142,1754421044234,-1230.95759948,0.0002851,2]
[377473143,1754421044244,-150.0,0.00028545,2]
[377473144,1754421044254,-153.24,0.00028565,15]
[377473145,1754421044263,-153.47,0.00028587,15]
[377473146,1754421044273,-150.15,0.00028587,15]
[377473147,1754421044283,-153.47,0.00028687,15]
[377473148,1754421044292,-150.15,0.00028687,15]
[377473149,1754421044301,-156.959517,0.00028704,20]
[377473150,1754421044310,-151.0,0.00028728,2]
[377473151,1754421044319,-151.0,0.00028728,2]
[377473152,1754421044328,-151.0,0.00028728,2]
[377473153,1754421044337,-151.0,0.00028728,2]
[377473154,1754421044346,-151.0,0.00028728,2]
[377473155,1754421044355,-151.0,0.00028728,2]
[377473156,1754421044364,-151.0,0.00028728,2]
[377473157,1754421044374,-300.0,0.00028728,2]
[377473158,1754421044385,-300.0,0.00028728,2]
[377473159,1754421044394,-300.0,0.00028728,2]
[377473160,1754421044403,-151.0,0.00028728,2]
[377473161,1754421044412,-151.0,0.00028728,2]
[377473162,1754421044422,-151.0,0.00028728,2]
[377473163,1754421044431,-151.0,0.00028728,2]
[377473164,1754421044440,-151.0,0.00028728,2]
[377473165,1754421044449,-151.0,0.00028728,2]
[377473166,1754421044458,-151.0,0.00028728,2]
[377473167,1754421044467,-151.0,0.00028728,2]
[377473168,1754421044476,-151.0,0.00028728,2]
[377473169,1754421044485,-151.0,0.00028728,2]
[377473170,1754421044494,-151.0,0.00028728,2]
[377473171,1754421044504,-151.0,0.00028728,2]
[377473172,1754421044513,-151.0,0.00028728,2]
[377473173,1754421044522,-151.0,0.00028728,2]
[377473174,1754421044531,-151.0,0.00028728,2]
[377473175,1754421044541,-22188.54324152,0.00028728,2]
[377473176,1754421044550,-151.0,0.00028728,2]
[377473177,1754421044559,-151.0,0.00028728,2]
[377473178,1754421044568,-151.0,0.00028728,2]
[377473179,1754421044577,-151.0,0.00028728,2]
[377473180,1754421044587,-152.55251612,0.00028728,2]
[377473181,1754421044596,-33567.74,0.00028766,2]
[377473182,1754421044606,-460.0,0.00028766,2]
[377473183,1754421044615,-626.69,0.00028766,2]
[377473184,1754421044625,-460.0,0.00028767,2]
[377473185,1754421044636,-460.0,0.00028767,2]
[377473186,1754421044645,-460.0,0.00028767,2]
[377473187,1754421044654,-460.0,0.00028767,2]
[377473188,1754421044664,-460.0,0.00028767,2]
[377473189,1754421044673,-460.0,0.00028767,2]
[377473190,1754421044683,-460.0,0.00028767,2]
[377473191,1754421044692,-623.71,0.00028767,2]
[377473192,1754421044704,-557.91,0.00028767,2]
[377473193,1754421044713,-3337.54,0.00028767,2]
[377473194,1754421044722,-460.0,0.00028767,2]
[377473195,1754421044732,-460.0,0.00028767,2]
[377473196,1754421044742,-541.46,0.00028767,2]
[377473197,1754421044753,-524.51,0.00028767,2]
[377473198,1754421044763,-950.23,0.00028767,2]
[377473200,1754421044772,-460.0,0.00028767,2]
[377473201,1754421044783,-570.51,0.00028767,2]
[377473202,1754421044793,-460.0,0.00028767,2]
[377473203,1754421044802,-491.27,0.00028767,2]
[377473204,1754421044812,-870.16,0.00028767,2]
[377473205,1754421044821,-2657.27,0.00028767,2]
[377473206,1754421044837,-1226.39,0.00028767,2]
[377473207,1754421044851,-460.0,0.00028767,2]
[377473208,1754421044861,-300.73,0.00028767,2]
[377473209,1754421044871,-789.35,0.00028767,2]
[377473210,1754421044882,-460.0,0.00028767,2]
[377473211,1754421044892,-460.0,0.00028767,2]
[377473212,1754421044902,-620.54,0.00028767,2]
[377473213,1754421044913,-460.0,0.00028767,2]
[377473214,1754421044923,-1008.37,0.00028767,2]
[377473215,1754421044933,-460.0,0.00028767,2]
[377473216,1754421044943,-460.0,0.00028767,2]
[377473217,1754421044954,-473.4,0.00028767,2]
[377473218,1754421044963,-460.0,0.00028767,2]
[377473219,1754421044974,-460.0,0.00028767,2]
[377473220,1754421044984,-460.0,0.00028767,2]
[377473221,1754421044994,-460.0,0.00028767,2]
[377473222,1754421045004,-460.0,0.00028767,2]
[377473223,1754421045014,-478.73,0.00028767,2]
[377473224,1754421045025,-460.0,0.00028767,2]
[377473225,1754421045034,-701.86,0.00028767,2]
[377473226,1754421045044,-530.37,0.00028767,2]
[377473227,1754421045054,-737.98,0.00028767,2]
[377473228,1754421045064,-1634.55,0.00028767,2]
[377473229,1754421045074,-460.0,0.00028767,2]
[377473230,1754421045084,-1213.33,0.00028767,2]
[377473231,1754421045094,-582.74,0.00028767,2]
[377473232,1754421045104,-779.51,0.00028767,2]
[377473233,1754421045113,-460.0,0.00028767,2]
[377473234,1754421045123,-1184.55,0.00028767,2]
[377473235,1754421045136,-460.0,0.00028767,2]
[377473236,1754421045146,-153.47,0.00028787,15]
[377473237,1754421045156,-150.15,0.00028787,15]
[377473238,1754421045166,-153.47,0.00028887,15]
[377473239,1754421045176,-150.15,0.00028887,15]
[377473240,1754421045186,-153.47,0.00028987,15]
[377473241,1754421045196,-150.15,0.00028987,15]
[377473242,1754421045206,-3000.0,0.00028996,2]
[377473243,1754421045215,-527.3554621,0.00029,10]
[377473244,1754421045225,-527.3554621,0.00029,10]
[377473245,1754421045235,-360.0,0.00029036,2]
[377473246,1754421045244,-33567.74,0.0002904,2]
[377473247,1754421045254,-339.09705927,0.0002904,2]
[377473248,1754421045266,-626.69,0.0002904,2]
[377473249,1754421045276,-460.0,0.00029041,2]
[377473250,1754421045287,-460.0,0.00029041,2]
[377473251,1754421045297,-460.0,0.00029041,2]
[377473252,1754421045307,-460.0,0.00029041,2]
[377473253,1754421045317,-460.0,0.00029041,2]
[377473254,1754421045326,-460.0,0.00029041,2]
[377473255,1754421045337,-460.0,0.00029041,2]
[377473256,1754421045346,-623.71,0.00029041,2]
[377473257,1754421045356,-557.91,0.00029041,2]
[377473258,1754421045365,-3337.54,0.00029041,2]
[377473259,1754421045375,-460.0,0.00029041,2]
[377473260,1754421045536,-460.0,0.00029041,2]
[377473261,1754421045546,-541.46,0.00029041,2]
[377473262,1754421045555,-524.51,0.00029041,2]
[377473263,1754421045565,-950.23,0.00029041,2]
[377473264,1754421045575,-460.0,0.00029041,2]
[377473265,1754421045585,-570.51,0.00029041,2]
[377473266,1754421045595,-460.0,0.00029041,2]
[377473267,1754421045604,-491.27,0.00029041,2]
[377473268,1754421045614,-870.16,0.00029041,2]
[377473269,1754421045623,-2657.27,0.00029041,2]
[377473270,1754421045635,-460.0,0.00029041,2]
[377473271,1754421045645,-1226.39,0.00029041,2]
[377473272,1754421045655,-789.35,0.00029041,2]
[377473273,1754421045664,-460.0,0.00029041,2]
[377473274,1754421045674,-460.0,0.00029041,2]
[377473275,1754421045683,-620.54,0.00029041,2]
[377473276,1754421045694,-425.82,0.00029041,2]
[377473277,1754421045706,-1008.37,0.00029041,2]
[377473278,1754421045716,-201.7,0.00029041,2]
[377473279,1754421045725,-460.0,0.00029041,2]
[377473280,1754421045735,-473.4,0.00029041,2]
[377473281,1754421045747,-460.0,0.00029041,2]
[377473282,1754421045757,-460.0,0.00029041,2]
[377473283,1754421045767,-460.0,0.00029041,2]
[377473284,1754421045778,-460.0,0.00029041,2]
[377473285,1754421045788,-460.0,0.00029041,2]
[377473286,1754421045798,-478.73,0.00029041,2]
[377473287,1754421045807,-460.0,0.00029041,2]
[377473288,1754421045817,-701.86,0.00029041,2]
[377473289,1754421045826,-530.37,0.00029041,2]
[377473290,1754421045836,-737.98,0.00029041,2]
[377473291,1754421045845,-1634.55,0.00029041,2]
[377473292,1754421045855,-460.0,0.00029041,2]
[377473293,1754421045864,-1213.33,0.00029041,2]
[377473294,1754421045874,-582.74,0.00029041,2]
[377473295,1754421045891,-779.51,0.00029041,2]
[377473296,1754421045900,-460.0,0.00029041,2]
[377473297,1754421045910,-1184.55,0.00029041,2]
[377473298,1754421045920,-460.0,0.00029041,2]
[377473299,1754421045929,-153.47,0.00029087,15]
[377473300,1754421045939,-150.15,0.00029087,15]
[377473301,1754421045950,-4000.0,0.00029088,3]
[377473302,1754421045959,-842.25606042,0.00029157,2]
[377473303,1754421045968,-160.0,0.00029157,2]
[377473304,1754421045978,-160.0,0.00029157,2]
[377473305,1754421045987,-160.0,0.00029157,2]
[377473306,1754421045997,-153.47,0.00029187,15]
[377473307,1754421046007,-150.15,0.00029187,15]
[377473308,1754421046017,-160.0,0.00029242,2]
[377473309,1754421046026,-216.4206905,0.00029242,2]
[377473310,1754421046035,-160.0,0.00029242,2]
[377473311,1754421046045,-160.0,0.00029242,2]
[377473312,1754421046054,-231.72586818,0.00029242,2]
[377473313,1754421046064,-153.47,0.00029287,15]
[377473314,1754421046073,-150.15,0.00029287,15]
[377473315,1754421046083,-156.959517,0.00029306,20]
[377473316,1754421046092,-33567.74,0.00029314,2]
[377473317,1754421046101,-626.69,0.00029314,2]
[377473318,1754421046111,-460.0,0.00029315,2]
[377473319,1754421046120,-460.0,0.00029315,2]
[377473320,1754421046129,-460.0,0.00029315,2]
[377473321,1754421046140,-460.0,0.00029315,2]
[377473322,1754421046149,-460.0,0.00029315,2]
[377473323,1754421046159,-460.0,0.00029315,2]
[377473324,1754421046168,-460.0,0.00029315,2]
[377473325,1754421046177,-623.71,0.00029315,2]
[377473326,1754421046187,-557.91,0.00029315,2]
[377473327,1754421046196,-3337.54,0.00029315,2]
[377473328,1754421046206,-460.0,0.00029315,2]
[377473329,1754421046216,-460.0,0.00029315,2]
[377473330,1754421046225,-541.46,0.00029315,2]
[377473331,1754421046234,-524.51,0.00029315,2]
[377473332,1754421046244,-950.23,0.00029315,2]
[377473333,1754421046253,-460.0,0.00029315,2]
[377473334,1754421046262,-570.51,0.00029315,2]
[377473335,1754421046273,-460.0,0.00029315,2]
[377473336,1754421046282,-491.27,0.00029315,2]
[377473337,1754421046291,-870.16,0.00029315,2]
[377473338,1754421046302,-2657.27,0.00029315,2]
[377473340,1754421046312,-237.26,0.00029315,2]
[377473342,1754421046322,-1226.39,0.00029315,2]
[377473343,1754421046331,-789.35,0.00029315,2]
[377473344,1754421046340,-460.0,0.00029315,2]
[377473345,1754421046349,-460.0,0.00029315,2]
[377473347,1754421046359,-620.54,0.00029315,2]
[377473348,1754421046368,-1008.37,0.00029315,2]
[377473349,1754421046377,-460.0,0.00029315,2]
[377473350,1754421046389,-473.4,0.00029315,2]
[377473351,1754421046399,-460.0,0.00029315,2]
[377473352,1754421046409,-460.0,0.00029315,2]
[377473353,1754421046417,-460.0,0.00029315,2]
[377473354,1754421046426,-460.0,0.00029315,2]
[377473355,1754421046434,-445.1,0.00029315,2]
[377473356,1754421046444,-478.73,0.00029315,2]
[377473357,1754421046452,-401.91478979,0.00029315,2]
[377473359,1754421046461,-701.86,0.00029315,2]
[377473360,1754421046470,-530.37,0.00029315,2]
[377473361,1754421046478,-737.98,0.00029315,2]
[377473362,1754421046487,-1634.55,0.00029315,2]
[377473363,1754421046495,-460.0,0.00029315,2]
[377473364,1754421046503,-1213.33,0.00029315,2]
[377473365,1754421046512,-582.74,0.00029315,2]
[377473367,1754421046521,-779.51,0.00029315,2]
[377473368,1754421046530,-460.0,0.00029315,2]
[377473369,1754421046538,-1184.55,0.00029315,2]
[377473370,1754421046547,-460.0,0.00029315,2]